bitfinex-derivatives/quotes_ETHF0:USTF0_20251021
["timestamp","ask_amount","ask_price","bid_price","bid_amount"]
[1761034006184,1.18886909,3886.5,3886.4,1.23404]
[1761034006588,0.63996909,3886.5,3886.4,1.23404]
[1761034006786,0.63996909,3886.5,3886.4,10.37204]
[1761034006787,0.64228147,3886.5,3886.4,10.37204]
[1761034008181,0.00231238,3886.5,3886.4,10.37204]
[1761034009782,1.82466882,3887.7,3887.6,0.4406]
[1761034009975,1.07852545,3887.7,3887.6,0.2307]
[1761034010387,1.39662545,3887.7,3887.6,0.771]
[1761034010588,0.63872545,3887.7,3887.6,0.771]
[1761034010884,0.64061638,3887.7,3887.6,0.771]
[1761034011086,0.87141638,3887.7,3887.6,0.771]
[1761034011387,0.7579,3887.3,3887.2,0.771]
[1761034011589,0.7579,3887.3,3887.2,9.911]
[1761034011782,0.7579,3887.3,3887.2,10.37394]
[1761034012179,0.4398,3887.1,3887.0,1.23072051]
[1761034012385,0.2308,3887.1,3887.0,10.50867]
[1761034012587,0.44169093,3887.7,3887.1,0.3304]
[1761034012787,0.7579,3887.6,3887.5,0.771]
[1761034013090,0.7579,3887.6,3887.5,0.2307]
[1761034014490,0.7579,3887.6,3887.5,0.5611]
[1761034015095,0.7579,3887.6,3887.5,0.2307]
[1761034015595,0.8888,3887.5,3887.4,0.46291]
[1761034019795,0.8888,3887.5,3886.8,1.50196]
[1761034019796,0.7572,3886.9,3886.8,0.46299]
[1761034020387,0.2151,3886.7,3886.6,0.463]
[1761034020582,0.7572,3886.7,3886.6,0.463]
[1761034021588,0.7572,3886.7,3886.6,1.2374]
[1761034024495,0.7572,3886.7,3886.6,0.7744]
[1761034024790,0.7572,3885.8,3884.8,1.15806]
[1761034025002,0.7572,3885.7,3885.6,0.46635975]
[1761034025183,0.7572,3885.7,3885.6,0.68435975]
[1761034025890,0.7572,3885.7,3885.6,1.02885975]
[1761034026197,0.7572,3885.7,3885.6,1.24075975]
[1761034026400,0.7572,3886.0,3885.9,1.2375]
[1761034026587,0.7572,3886.9,3886.8,1.01939]
[1761034026788,0.7572,3886.9,3886.8,0.7744]
[1761034027098,0.7572,3886.9,3886.8,0.218]
[1761034029500,0.3288,3886.8,3886.7,0.463]
[1761034029691,0.7572,3886.8,3886.7,0.463]
[1761034030295,0.46298,3886.9,3876.4,13.7244249]
[1761034030296,0.7572,3886.3,3886.2,0.89296]
[1761034030497,0.8828,3886.0,3885.9,1.0256]
[1761034030992,0.7572,3885.7,3885.5,0.3445]
[1761034031201,0.7572,3885.7,3885.6,1.02885975]
[1761034031393,0.7572,3885.7,3885.6,0.68435975]
[1761034033603,0.7572,3885.7,3885.6,0.46635975]
[1761034033804,0.7572,3885.7,3885.6,0.68435975]
[1761034034012,0.7572,3885.7,3885.6,1.02885975]
[1761034034608,1.22032,3885.7,3885.6,0.00322975]
[1761034035206,6.22032,3885.7,3885.6,0.00322975]
[1761034035408,6.84400205,3885.7,3885.6,0.00322975]
[1761034036419,0.2133,3884.8,3884.7,1.01964]
[1761034036713,0.7687,3884.8,3884.7,1.23764]
[1761034037516,0.77144917,3884.8,3884.7,1.23979119]
[1761034037716,0.77144917,3884.8,3884.7,0.46539119]
[1761034037921,0.77144917,3884.8,3884.7,0.99969119]
[1761034038218,0.77144917,3884.8,3884.7,1.22719119]
[1761034040215,0.00274917,3884.8,3884.7,1.22719119]
[1761034040908,0.22194917,3884.8,3884.7,1.22719119]
[1761034041307,0.00274917,3884.8,3884.7,1.22719119]
[1761034050527,0.77524917,3884.8,3884.7,1.22719119]
[1761034051226,0.3372,3884.1,3884.0,0.89053]
[1761034051423,0.3372,3884.4,3884.3,0.46329]
[1761034051623,0.7725,3884.4,3884.3,0.4272]
[1761034052128,0.7725,3884.4,3884.3,0.42924381]
[1761034052324,0.7725,3884.4,3884.3,0.21564381]
[1761034053324,0.3372,3883.6,3882.8,2.0830161]
[1761034053524,0.56,3882.9,3882.8,2.96405372]
[1761034053921,0.7725,3882.9,3882.8,2.96405372]
[1761034054129,0.7725,3882.9,3882.8,2.96684823]
[1761034055834,0.56,3882.9,3882.8,3.18044823]
[1761034057337,0.56,3882.9,3882.8,2.96684823]
[1761034057546,0.56,3882.9,3882.8,3.18044823]
[1761034057740,0.5673,3883.5,3883.4,0.4272]
[1761034058039,0.5673,3883.5,3882.9,0.2136]
[1761034058040,0.5673,3883.5,3883.3,0.4634]
[1761034058238,0.7725,3883.4,3883.3,0.4634]
[1761034058541,0.7725,3883.4,3883.3,0.677]
[1761034060040,0.7725,3883.4,3883.3,0.8906]
[1761034061840,0.7725,3883.4,3883.3,0.4634]
[1761034064743,0.3372,3883.9,3883.8,0.89055]
[1761034064945,0.56,3884.1,3884.0,0.89053]
[1761034065341,0.3372,3884.1,3884.0,1.10413]
[1761034067235,0.56,3884.1,3884.0,1.10413]
[1761034067440,0.3372,3884.1,3884.0,1.10413]
[1761034067744,0.2228,3883.2,3882.9,1.15865]
[1761034068049,0.7725,3883.1,3883.0,0.67705]
[1761034072849,0.7725,3882.9,3882.8,2.08581061]
[1761034073044,0.7725,3882.9,3882.8,2.29941061]
[1761034074248,0.7725,3882.9,3882.8,1.87221061]
[1761034074747,0.7725,3882.9,3882.8,2.08581061]
[1761034075248,0.7725,3882.9,3882.8,1.87221061]
[1761034075449,1.3989022,3882.9,3882.8,1.87221061]
[1761034075843,1.3989022,3882.9,3882.8,2.54928061]
[1761034076246,1.3989022,3882.9,3882.8,2.76288061]
[1761034076447,0.7725,3882.9,3882.8,2.76288061]
[1761034076648,0.7725,3882.9,3882.8,2.54928061]
[1761034076952,0.7725,3882.9,3882.8,2.33568061]
[1761034077249,1.39884876,3882.9,3882.8,2.33568061]
[1761034077451,1.86229876,3882.9,3882.8,1.87221061]
[1761034077650,1.86229876,3882.9,3882.8,2.33568061]
[1761034079148,1.86229876,3882.9,3882.8,1.87221061]
[1761034080342,6.86229876,3882.9,3882.8,1.87221061]
[1761034081150,0.5501,3881.8,3881.7,0.62818997]
[1761034081451,0.89732,3882.4,3882.3,0.2112]
[1761034081642,0.5636,3882.0,3881.9,0.67478]
[1761034081845,0.5636,3882.0,3881.9,0.88858]
[1761034082055,0.89169178,3882.0,3881.9,0.8915822]
[1761034082255,0.68229178,3882.0,3881.9,1.1053822]
[1761034082457,0.68229178,3882.0,3881.9,0.8915822]
[1761034082752,0.89169178,3882.0,3881.9,0.8915822]
[1761034082953,0.89169178,3882.0,3881.9,0.4665822]
[1761034083154,0.89169178,3882.0,3881.9,0.8915822]
[1761034083957,0.89169178,3882.0,3881.9,0.6777822]
[1761034084660,0.89169178,3882.0,3881.9,0.8915822]
[1761034085052,0.68229178,3882.0,3881.9,1.1053822]
[1761034085549,0.68229178,3882.0,3881.9,0.8915822]
[1761034085854,0.89169178,3882.0,3881.9,0.8915822]
[1761034086157,0.89169178,3882.0,3881.9,0.4280022]
[1761034086459,1.35525178,3882.0,3881.9,0.6777822]
[1761034086665,1.98960402,3882.0,3881.9,0.0030022]
[1761034086955,0.4338,3881.3,3881.2,0.46365]
[1761034087156,0.7595,3881.3,3881.2,0.67485]
[1761034087368,0.7595,3881.3,3881.2,0.88865]
[1761034087861,0.7595,3881.3,3881.2,0.89117547]
[1761034088459,0.7595,3881.3,3881.2,0.42752547]
[1761034088758,0.7595,3881.3,3881.2,0.89118547]
[1761034088960,0.7595,3881.3,3881.2,0.21372547]
[1761034088961,1.22315,3881.3,3881.2,0.21372547]
[1761034089156,1.22315,3881.3,3881.2,0.00252547]
[1761034090359,0.4338,3880.3,3880.2,0.89127]
[1761034090664,0.3257,3880.8,3880.7,1.10752]
[1761034091064,0.3542,3881.5,3881.3,0.6438]
[1761034091264,0.3542,3881.5,3881.4,0.4275]
[1761034091563,0.8893,3881.5,3881.4,0.4275]
[1761034091766,0.8893,3881.5,3881.4,0.2112]
[1761034092364,0.8893,3881.5,3881.3,0.4667876]
[1761034092365,0.7595,3881.4,3881.3,0.4667876]
[1761034092868,0.7595,3881.4,3881.3,0.6779876]
[1761034093766,0.7595,3881.4,3881.3,0.8942876]
[1761034094060,0.5501,3881.7,3881.6,0.2163]
[1761034094366,0.5501,3881.7,3881.6,0.6438]
[1761034094865,0.5501,3881.7,3881.6,0.4275]
[1761034095858,0.5501,3881.7,3881.6,0.6438]
[1761034096561,0.5501,3881.7,3881.6,0.89111]
[1761034096762,0.5501,3881.7,3881.6,1.10751]
[1761034097664,0.3409,3881.6,3881.3,0.2195476]
[1761034097866,0.3409,3881.7,3881.4,0.2164]
[1761034098072,0.5548,3881.7,3881.6,0.89641]
[1761034098471,0.7736,3881.7,3881.6,0.89641]
[1761034098870,0.3409,3881.7,3881.6,1.11281]
[1761034099167,0.7736,3881.4,3881.3,0.0031476]
[1761034099370,0.7736,3881.4,3881.3,0.4667976]
[1761034099572,0.7736,3881.4,3881.3,0.6831976]
[1761034099773,0.7736,3881.4,3881.3,0.0031476]
[1761034099977,1.87091481,3881.4,3881.3,0.2195476]
[1761034101463,1.40727481,3881.4,3881.3,0.8995976]
[1761034101672,0.97457481,3881.4,3881.3,1.1159976]
[1761034101869,0.5548,3881.4,3881.3,1.1159976]
[1761034102171,1.19533886,3881.4,3881.3,1.1159976]
[1761034102669,0.5548,3881.4,3881.3,1.1159976]
[1761034102864,0.5548,3881.9,3881.8,0.4328]
[1761034103071,0.5548,3881.9,3881.5,0.2164]
[1761034103072,0.2139,3881.7,3881.6,0.68]
[1761034103270,0.7736,3881.7,3881.6,0.68]
[1761034103459,1.41892259,3881.7,3881.6,0.68]
[1761034103662,0.6937,3881.5,3881.4,0.89643]
[1761034104171,0.9125,3881.5,3881.4,0.89643]
[1761034105771,0.9125,3881.5,3881.3,0.4667976]
[1761034105966,0.3409,3881.4,3881.3,1.1159976]
[1761034106169,0.5548,3881.4,3881.3,0.8995976]
[1761034106466,0.7736,3881.4,3881.3,0.4667976]
[1761034106671,1.23724,3881.4,3881.3,0.0031476]
[1761034106973,1.41938426,3881.4,3881.3,0.4359476]
[1761034107166,1.88302426,3881.4,3881.3,0.4359476]
[1761034107367,1.41938426,3881.4,3881.3,0.8995976]
[1761034107563,1.20058426,3881.4,3881.3,0.6523476]
[1761034107768,1.88302426,3881.4,3881.3,0.0031476]
[1761034108075,1.88302426,3881.4,3881.3,0.2126476]
[1761034108370,1.88302426,3881.4,3881.3,0.0031476]
[1761034112475,3.04483857,3881.4,3881.3,0.0031476]
[1761034112772,1.88302426,3881.4,3881.3,0.0031476]
[1761034115876,0.64578426,3881.4,3881.3,1.1092976]
[1761034116169,0.5597,3881.7,3881.6,0.88961]
[1761034116375,0.5597,3881.7,3881.6,1.10611]
[1761034116577,0.97736478,3881.7,3881.6,1.10611]
[1761034117874,0.64656478,3881.7,3881.6,1.10611]
[1761034118078,0.36109178,3882.0,3881.9,0.426]
[1761034118381,0.82465178,3882.0,3881.9,0.426]
[1761034118580,1.80193562,3882.0,3881.9,0.88958]
[1761034119087,1.33837562,3882.0,3881.9,0.88958]
[1761034120476,1.33837562,3882.0,3881.9,1.10608]
[1761034121280,1.80193562,3882.0,3881.9,1.10608]
[1761034121482,1.80193562,3882.0,3881.9,0.88958]
[1761034121883,1.80193562,3882.0,3881.9,1.10608]
[1761034122783,1.33837562,3882.0,3881.9,1.10608]
[1761034124282,2.03213562,3882.0,3881.9,0.426]
[1761034125586,2.03213562,3882.0,3881.9,0.88957]
[1761034125785,1.56857562,3882.0,3881.9,0.88957]
[1761034127381,1.56857562,3882.0,3881.9,1.10607]
[1761034127583,0.64887562,3882.0,3881.9,6.10607]
[1761034127786,0.00239178,3882.0,3881.9,6.10607]
[1761034131798,0.00239178,3882.0,3881.9,1.10607]
[1761034131799,0.56209178,3882.0,3881.9,1.10607]
[1761034131991,0.7899,3881.9,3881.8,0.46359]
[1761034132992,0.59395178,3882.0,3881.3,0.0031476]
[1761034132993,0.5597,3881.4,3881.3,6.2722976]
[1761034133292,0.7899,3881.4,3881.3,6.4817976]
[1761034133996,0.7899,3881.4,3881.3,0.8927976]
[1761034134994,0.7899,3881.4,3881.3,1.1092976]
[1761034135196,0.3308,3881.8,3881.5,1.15906]
[1761034135405,0.13039178,3882.0,3881.9,1.10607]
[1761034135696,0.58949178,3882.0,3881.9,0.46357]
[1761034135903,0.92029178,3882.0,3881.9,0.88957]
[1761034136092,0.92029178,3882.0,3881.9,0.67307]
[1761034136800,0.7899,3881.9,3881.8,0.46358]
[1761034136991,0.7899,3881.9,3881.8,0.67308]
[1761034138595,0.7899,3881.9,3881.8,0.46358]
[1761034139502,0.7899,3881.9,3881.8,0.67998]
[1761034139703,0.7899,3881.9,3881.8,1.11218]
[1761034139900,0.7899,3881.9,3881.8,0.67998]
[1761034140197,0.7899,3881.9,3881.8,0.46358]
[1761034140701,0.7899,3881.9,3881.8,0.67998]
[1761034140902,0.7899,3881.9,3881.8,0.89578]
[1761034141495,0.561,3881.9,3881.8,0.89578]
[1761034141696,0.5417,3881.9,3881.8,1.11218]
[1761034142207,0.3308,3881.9,3881.8,1.11218]
[1761034142396,0.00239178,3882.0,3881.9,1.11217]
[1761034142596,0.34609178,3882.0,3881.9,1.11217]
[1761034142904,0.68689178,3882.0,3881.9,1.11217]
[1761034143402,0.00239178,3882.0,3881.9,1.11217]
[1761034145496,0.34609178,3882.0,3881.9,1.11217]
[1761034145996,0.00239178,3882.0,3881.9,1.11217]
[1761034146695,0.00239178,3882.0,3881.9,6.11217]
[1761034146896,0.00239178,3882.0,3881.9,1.11217]
[1761034147096,0.34609178,3882.0,3881.9,1.11217]
[1761034148010,0.00239178,3882.0,3881.9,1.11217]
[1761034150101,0.00239178,3882.0,3881.9,6.11217]
[1761034150295,0.7859,3882.9,3882.8,0.46347]
[1761034150494,1.43085946,3882.9,3882.8,0.46347]
[1761034150896,1.43085946,3882.9,3882.7,0.46347]
[1761034150897,0.7859,3882.8,3882.7,0.46347]
[1761034151097,1.43085946,3882.8,3882.7,0.67987]
[1761034151298,1.43409497,3882.8,3882.7,0.67987]
[1761034153411,1.43399639,3882.8,3882.7,0.67987]
[1761034154214,0.7859,3882.2,3882.1,9.67755]
[1761034154512,0.7859,3882.2,3882.1,10.09482313]
[1761034154700,0.7859,3882.2,3882.1,0.66442313]
[1761034154901,0.7859,3882.2,3882.1,8.75742313]
[1761034155101,0.7859,3882.2,3882.1,9.87842313]
[1761034155401,0.7859,3882.2,3882.1,10.09482313]
[1761034156606,0.7859,3882.2,3882.1,0.66442313]
[1761034156814,1.43080495,3882.2,3882.1,9.87842313]
[1761034157201,1.89434495,3882.2,3882.1,0.66442313]
[1761034157609,1.43080495,3882.2,3882.1,0.66442313]
[1761034158017,1.43080495,3882.2,3882.1,0.88082313]
[1761034159002,1.43080495,3882.2,3882.1,1.09212313]
[1761034164814,0.3437,3882.2,3882.1,1.30862313]
[1761034165915,0.5746,3882.2,3882.1,1.30862313]
[1761034169719,0.3437,3882.2,3882.1,1.30862313]
[1761034169914,0.3505,3882.5,3882.4,1.10781]
[1761034170216,0.99526052,3882.5,3882.4,10.30081]
[1761034170410,1.31006052,3882.5,3882.4,10.30081]
[1761034170809,1.53396052,3882.5,3882.4,10.08451]
[1761034171116,1.53396052,3882.5,3882.4,10.30081]
[1761034171520,1.31006052,3882.5,3882.4,10.30081]
[1761034172716,0.3148,3882.5,3882.4,10.30081]
[1761034172915,1.31019304,3882.5,3882.4,10.30081]
[1761034174114,0.6653,3882.5,3882.4,10.30081]
[1761034174723,0.8892,3882.5,3882.4,10.08451]
[1761034174923,1.31015275,3882.5,3882.4,10.30081]
[1761034175420,1.31013887,3882.5,3882.4,10.30081]
[1761034175923,0.6653,3882.5,3882.4,10.30081]
[1761034178422,0.9595928,3882.5,3882.4,10.30081]
[1761034179428,1.3100928,3882.5,3882.4,10.30081]
[1761034180625,0.6653,3882.5,3882.4,10.30081]
[1761034181025,0.00323551,3882.8,3882.7,0.428]
[1761034181236,0.31803551,3882.8,3882.7,10.28678]
[1761034181528,0.76253551,3882.8,3882.7,10.07048]
[1761034184430,0.53863551,3882.8,3882.7,10.28678]
[1761034186023,0.31803551,3882.8,3882.7,10.28678]
[1761034187533,0.00323551,3882.8,3882.7,10.28678]
[1761034188029,0.31803551,3882.8,3882.7,10.28678]
[1761034191822,0.00323551,3882.8,3882.7,10.28678]
[1761034192224,0.31803551,3882.8,3882.7,10.28678]
[1761034195038,0.00323551,3882.8,3882.7,10.28678]
[1761034195439,0.31803551,3882.8,3882.7,10.28678]
[1761034202542,0.31803551,3882.8,3882.7,1.10778]
[1761034202843,0.31803551,3882.8,3882.7,10.26178]
[1761034218157,0.53013551,3882.8,3882.7,10.26178]
[1761034220153,0.53013551,3882.8,3882.7,10.26078]
[1761034226166,0.53013551,3882.8,3882.7,1.10778]
[1761034226356,0.53013551,3882.8,3882.7,10.25978]
[1761034231470,0.31803551,3882.8,3882.7,10.25978]
[1761034231770,0.53983551,3882.8,3882.7,10.25978]
[1761034232877,0.31803551,3882.8,3882.7,10.25978]
[1761034233976,0.31803551,3882.8,3882.7,1.10778]
[1761034234177,0.31803551,3882.8,3882.7,10.25978]
[1761034237980,0.53983551,3882.8,3882.7,10.25978]
[1761034240479,0.76393551,3882.8,3882.7,10.04348]
[1761034241181,1.39871574,3882.8,3882.7,10.04348]
[1761034242478,0.76393551,3882.8,3882.7,10.04348]
[1761034242884,0.76393551,3882.8,3882.7,10.25958]
[1761034245382,0.76393551,3882.8,3882.7,1.10758]
[1761034245585,0.76393551,3882.8,3882.7,10.25858]
[1761034245886,0.76393551,3882.8,3882.7,1.10758]
[1761034246188,0.76393551,3882.8,3882.7,10.25758]
[1761034246583,0.76393551,3882.8,3882.7,1.10758]
[1761034246778,0.76393551,3882.8,3882.7,10.25758]
[1761034252092,0.31803551,3882.8,3882.7,10.25758]
[1761034252295,0.53983551,3882.8,3882.7,10.25758]
[1761034252992,1.17497684,3882.8,3882.7,10.25758]
[1761034253385,1.39907684,3882.8,3882.7,10.04148]
[1761034253587,1.86255684,3882.8,3882.6,0.4635]
[1761034253793,0.6956,3882.5,3882.4,0.46351]
[1761034253995,0.9174,3882.5,3882.4,10.04291]
[1761034255896,0.9174,3882.5,3882.4,10.25901]
[1761034256383,0.00323551,3882.8,3882.7,0.46349]
[1761034256697,0.86629487,3882.8,3882.7,10.25899]
[1761034256994,1.42529487,3882.8,3882.7,10.04289]
[1761034257692,0.7585,3882.6,3882.5,0.46351]
[1761034257898,0.7585,3882.6,3882.5,9.61251]
[1761034258194,0.7585,3882.6,3882.5,0.2144]
[1761034258394,1.8632668,3882.6,3882.5,8.5524]
[1761034258695,1.3997668,3882.6,3882.5,8.338]
[1761034259797,0.8876,3882.5,3882.4,9.82592]
[1761034260099,1.5288668,3882.5,3882.4,9.3624]
[1761034260884,1.5288668,3882.5,3882.4,0.2144]
[1761034261092,1.5288668,3882.5,3882.4,9.3624]
[1761034261300,1.5288668,3882.5,3882.4,9.148]
[1761034261597,1.9923768,3882.5,3882.4,9.148]
[1761034262401,1.9923768,3882.5,3882.4,9.61153]
[1761034262793,1.5288668,3882.5,3882.4,9.82593]
[1761034263001,1.2981668,3882.5,3882.4,10.25123]
[1761034263394,1.5288668,3882.5,3882.4,0.88853]
[1761034263596,1.5288668,3882.5,3882.4,10.03653]
[1761034264802,0.313,3882.5,3882.4,10.25123]
[1761034264998,0.313,3882.7,3882.6,0.8885]
[1761034265201,1.16267116,3882.7,3882.6,0.8885]
[1761034265400,1.39337116,3882.7,3882.6,0.8885]
[1761034265702,1.39337116,3882.7,3882.4,0.88852]
[1761034265703,0.8876,3882.5,3882.4,0.88852]
[1761034267805,0.8876,3882.5,3882.4,1.10322]
[1761034268004,0.6569,3882.5,3882.4,1.10322]
[1761034269707,0.4421,3882.5,3882.4,1.10322]
[1761034269908,0.313,3882.5,3882.4,1.10322]
[1761034270108,0.21803551,3882.8,3882.7,1.10319]
[1761034270301,0.85291482,3882.8,3882.7,1.10319]
[1761034270705,0.00323551,3882.8,3882.7,1.10319]
[1761034271407,0.31623551,3882.8,3882.7,1.10319]
[1761034275006,0.92011754,3883.8,3883.6,0.46338]
[1761034275203,0.1299,3884.0,3883.9,0.4291]
[1761034275204,0.3447,3884.0,3883.9,0.4291]
[1761034275404,0.97975934,3884.0,3883.9,0.6397]
[1761034275609,1.52345934,3884.0,3883.9,0.425]
[1761034276010,1.52577107,3884.0,3883.9,0.425]
[1761034276613,1.52577107,3884.0,3883.9,0.88835]
[1761034279824,1.98911107,3884.0,3883.9,0.88835]
[1761034280015,1.29507107,3884.0,3883.9,1.10435]
[1761034280416,1.29507107,3884.0,3883.9,0.88835]
[1761034280720,1.75841107,3884.0,3883.9,0.88835]
[1761034280919,1.98511107,3884.0,3883.9,0.88835]
[1761034281322,1.98511107,3884.0,3883.9,0.67775]
[1761034282419,1.98511107,3884.0,3883.9,0.2144]
[1761034282625,1.98511107,3884.0,3883.9,0.67775]
[1761034283725,1.98511107,3884.0,3883.9,0.89375]
[1761034284622,0.9112,3883.0,3882.9,0.89547]
[1761034284923,0.9112,3883.0,3882.9,10.04047]
[1761034287724,0.476,3883.0,3882.9,10.04047]
[1761034287931,0.5632,3883.9,3883.8,0.2157]
[1761034288225,1.40533252,3883.9,3883.8,0.432]
[1761034288734,1.86868252,3883.9,3883.8,0.432]
[1761034289326,1.86868252,3883.9,3883.8,0.2163]
[1761034289824,0.46336,3883.8,3883.6,9.60738]
[1761034290030,0.7816,3883.2,3883.1,0.67974]
[1761034290332,0.7816,3883.2,3883.1,9.82374]
[1761034291234,0.3385,3883.2,3883.1,10.25574]
[1761034291533,0.35691173,3884.0,3883.7,0.67967]
[1761034291729,0.4431,3883.8,3883.7,0.67967]
[1761034292032,0.7816,3883.8,3883.7,0.67967]
[1761034292227,0.80187,3883.7,3883.3,0.46342]
[1761034292423,0.7816,3883.4,3883.3,0.67972]
[1761034292725,0.2247,3882.8,3882.7,1.59132]
[1761034292923,0.5632,3882.8,3882.7,10.25479]
[1761034294530,0.7816,3882.8,3882.7,9.143]
[1761034294837,0.7816,3882.6,3882.5,0.6798]
[1761034295028,0.7816,3882.6,3882.5,10.0385]
[1761034295735,0.7816,3882.6,3882.5,0.8955]
[1761034295928,0.7816,3882.6,3882.5,10.2548]
[1761034296124,0.5632,3882.6,3882.5,10.2548]
[1761034296325,0.3509,3883.0,3882.9,0.67977]
[1761034296529,0.5693,3883.0,3882.9,0.89547]
[1761034296936,0.9078,3883.0,3882.9,0.89547]
[1761034297532,0.6894,3883.0,3882.9,1.11177]
[1761034297829,0.9078,3883.0,3882.9,0.89547]
[1761034298637,0.9078,3883.0,3882.9,1.11177]
[1761034298937,0.3385,3883.0,3882.9,1.11177]
[1761034299136,0.6894,3883.0,3882.9,1.11177]
[1761034299736,0.3385,3883.0,3882.9,1.11177]
[1761034300439,0.4431,3883.9,3883.8,0.2157]
[1761034300743,0.00231173,3884.0,3883.9,1.11165]
[1761034301830,0.3385,3884.6,3883.9,6.11165]
[1761034302033,0.5632,3884.6,3884.5,0.6483]
[1761034302235,1.18818379,3884.6,3884.5,0.432]
[1761034302535,1.18818379,3884.6,3884.5,0.6483]
[1761034302730,0.96348379,3884.6,3884.5,0.6483]
[1761034303247,0.96348379,3884.6,3884.5,0.65130225]
[1761034303248,0.96672916,3884.6,3884.5,0.65130225]
[1761034304340,0.00324537,3884.6,3884.5,0.65130225]
[1761034304543,0.00324537,3884.6,3884.5,0.75810225]
[1761034305137,0.00324537,3884.6,3884.5,9.90110225]
[1761034312233,0.00324537,3884.6,3884.5,9.79430225]
[1761034312435,0.56644537,3884.6,3884.5,9.57800225]
[1761034312642,0.56644537,3884.6,3884.5,9.79430225]
[1761034312943,0.34174537,3884.6,3884.5,9.79430225]
[1761034314547,0.00324537,3884.6,3884.5,9.79430225]
[1761034315347,0.78484537,3884.6,3884.5,9.14300225]
[1761034315548,0.34174537,3884.6,3884.5,9.79130225]
[1761034315750,0.34174537,3884.6,3884.5,10.25458225]
[1761034315944,0.78484537,3884.6,3884.5,9.57500225]
[1761034316353,0.78484537,3884.6,3884.5,0.43500225]
[1761034316643,0.78484537,3884.6,3884.5,5.74228225]
[1761034316949,0.78484537,3884.6,3884.5,10.03828225]
[1761034317350,0.78484537,3884.6,3884.5,0.00300225]
[1761034317538,0.78484537,3884.6,3884.5,4.31200225]
[1761034317743,0.78484537,3884.6,3884.5,4.52810225]
[1761034318353,0.78484537,3884.6,3884.5,4.99138225]
[1761034320161,0.78484537,3884.6,3884.5,5.20748225]
[1761034320355,0.00324537,3884.6,3884.5,5.42358225]
[1761034320556,0.00324537,3884.6,3884.5,5.53018225]
[1761034321054,0.00324537,3884.6,3884.5,1.11458225]
[1761034321260,0.76024537,3884.6,3884.5,0.68238225]
[1761034321560,0.76024537,3884.6,3884.5,0.89848225]
[1761034325158,0.76024537,3884.6,3884.5,0.00300225]
[1761034325752,6.22350537,3884.6,3884.5,0.00300225]
[1761034326456,0.4403,3883.4,3883.3,0.89562]
[1761034326954,0.8932,3883.5,3883.4,0.4322]
[1761034327155,0.4529,3883.0,3882.9,0.89567]
[1761034327356,0.6678,3883.0,3882.9,6.51967]
[1761034327561,0.6678,3883.0,3882.9,6.73909083]
[1761034328462,0.6678,3883.0,3882.9,10.25409083]
[1761034329062,0.3167,3883.0,3882.9,1.11509083]
[1761034329260,0.3167,3883.0,3882.9,10.25409083]
[1761034329453,0.1362,3883.5,3883.4,0.67951]
[1761034329454,0.5765,3883.5,3883.4,0.67951]
[1761034329656,0.1362,3884.0,3883.7,0.89557]
[1761034329657,0.2149,3883.8,3883.7,0.89557]
[1761034329963,0.5316,3883.8,3883.7,0.4322]
[1761034330265,0.757,3883.8,3883.7,0.89557]
[1761034331360,0.1362,3884.0,3883.9,0.46335]
[1761034331560,0.3511,3884.0,3883.9,0.89555]
[1761034332061,0.6678,3884.0,3883.9,0.89555]
[1761034332265,0.8932,3884.0,3883.9,0.89555]
[1761034333464,0.4529,3884.0,3883.9,1.11165]
[1761034333665,0.3167,3884.0,3883.9,1.11165]
[1761034334065,0.5765,3884.5,3884.4,0.67939]
[1761034334662,0.8932,3884.5,3884.4,0.67939]
[1761034334866,0.6678,3884.5,3884.4,1.11159]
[1761034335066,0.6678,3884.5,3884.4,0.89549]
[1761034336870,0.8932,3884.5,3884.4,0.89549]
[1761034338277,0.8932,3884.5,3884.4,0.67939]
[1761034338468,0.8932,3884.5,3883.9,1.37447]
[1761034338469,0.5794,3884.0,3883.9,0.4322]
[1761034338771,0.6856,3883.5,3883.4,1.11171]
[1761034340168,0.6856,3883.5,3883.4,0.89561]
[1761034340371,0.9083,3883.5,3883.4,0.89561]
[1761034343082,0.9083,3883.5,3883.4,1.11171]
[1761034344094,0.9083,3883.5,3883.4,10.03561]
[1761034345187,0.6856,3883.5,3883.4,10.25171]
[1761034347688,0.6856,3883.5,3883.4,1.11171]
[1761034347891,0.6856,3883.5,3883.4,10.25171]
[1761034348284,0.9083,3883.5,3883.4,10.03561]
[1761034348489,0.9083,3883.5,3883.4,10.03261]
[1761034348991,0.9083,3883.5,3883.4,10.24871]
[1761034350390,0.9083,3883.5,3883.4,10.03261]
[1761034352379,0.9083,3883.5,3883.4,1.10871]
[1761034352584,0.9083,3883.5,3883.4,10.03261]
[1761034353494,0.9083,3883.5,3883.4,10.24871]
[1761034353793,0.3289,3883.5,3883.4,1.10871]
[1761034353986,0.3289,3883.5,3883.4,10.24871]
[1761034354185,0.6783,3883.5,3883.4,10.24871]
[1761034354684,0.3538,3884.0,3883.9,0.89255]
[1761034354890,0.5798,3884.0,3883.9,0.89255]
[1761034355294,0.8955,3884.0,3883.9,0.89255]
[1761034355493,1.50372618,3884.0,3883.9,0.89255]
[1761034356292,1.50372618,3884.0,3883.9,0.4292]
[1761034356496,1.50372618,3884.0,3883.9,0.89255]
[1761034364801,1.96705618,3884.0,3883.9,0.89255]
[1761034365298,1.96705618,3884.0,3883.9,0.67945]
[1761034365500,1.96705618,3884.0,3883.9,0.46335]
[1761034369798,1.96705618,3884.0,3883.7,6.428]
[1761034369799,0.77906,3883.9,3883.7,6.428]
[1761034370005,0.5309,3883.2,3883.1,2.73608721]
[1761034370303,0.5309,3883.2,3883.1,10.03164]
[1761034370502,0.5309,3883.2,3883.1,0.89264]
[1761034370699,0.5309,3883.2,3883.1,10.03164]
[1761034372305,0.1342,3883.5,3883.1,10.03164]
[1761034372306,0.3494,3883.5,3883.4,0.46341]
[1761034372509,0.5798,3884.0,3883.9,0.67945]
[1761034372804,1.51212641,3884.0,3883.9,0.67945]